fUST/lending_fUST_20250630
["ID","MTS","AMOUNT","RATE_DAILY","PERIOD"]
[368683692,1751295954582,-1021.54,0.0002087,2]
[368683693,1751295954603,-460.0,0.00020871,2]
[368683694,1751295954626,-590.23,0.00020871,2]
[368683695,1751295954649,-926.7,0.00020871,2]
[368683696,1751295954670,-15011.85133966,0.000209,2]
[368683697,1751295954693,-265.0,0.00020917,2]
[368683698,1751295954718,-2146.7062248,0.00020934,4]
[368683699,1751295954741,-460.0,0.00020971,2]
[368683700,1751295954764,-542.67,0.00020971,2]
[368683701,1751295954789,-460.0,0.00020971,2]
[368683702,1751295954813,-460.0,0.00020971,2]
[368683703,1751295954837,-460.0,0.00020971,2]
[368683704,1751295954863,-476.35,0.00020971,2]
[368683705,1751295954887,-684.26,0.00020972,2]
[368683706,1751295954910,-1734.18,0.00020972,2]
[368683707,1751295954934,-541.9,0.00020972,2]
[368683708,1751295954957,-460.0,0.00020972,2]
[368683709,1751295954979,-7595.77876626,0.00020978,2]
[368683710,1751295955005,-265.0,0.00020999,2]
[368683711,1751295955026,-2597.02,0.00021,2]
[368683712,1751295955048,-29431.85508365,0.00021,7]
[368683713,1751295956077,-460.0,0.00018131,2]
[368683714,1751295956099,-460.0,0.00018403,2]
[368683715,1751295956120,-460.0,0.00018404,2]
[368683716,1751295956140,-515.31,0.00018405,2]
[368683717,1751295956163,-228.78,0.00018677,2]
[368683718,1751295956183,-604.533,0.00020538,2]
[368683719,1751295956202,-6740.64,0.0002059,10]
[368683720,1751295956221,-87132.4490104,0.00021,7]
[368683721,1751295956241,-847.41730813,0.00021,7]
[368683722,1751295956260,-213.84631524,0.00021,7]
[368683723,1751295956280,-12569.13231816,0.00021,7]
[368683724,1751295956299,-206.0,0.0002104,2]
[368683725,1751295956317,-500.0,0.00021068,2]
[368683726,1751295956338,-500.0,0.00021069,2]
[368683727,1751295956359,-532.49846188,0.00021112,2]
[368683728,1751295956382,-168.0,0.00021124,2]
[368683729,1751295956402,-2506.12676627,0.0002114,2]
[368683730,1751295956428,-2146.7062248,0.00021141,4]
[368683731,1751295956451,-1019.53,0.00021143,2]
[368683732,1751295956474,-1005.55,0.00021143,2]
[368683733,1751295956496,-741.63,0.00021143,2]
[368683734,1751295956518,-868.22,0.00021143,2]
[368683735,1751295956539,-1506.3,0.00021143,2]
[368683736,1751295956561,-478.08,0.00021143,2]
[368683737,1751295956582,-460.0,0.00021144,2]
[368683738,1751295956602,-1021.54,0.00021144,2]
[368683739,1751295956624,-460.0,0.00021145,2]
[368683740,1751295956645,-590.23,0.00021145,2]
[368683741,1751295956666,-926.7,0.00021145,2]
[368683742,1751295956686,-2200.0,0.00021173,2]
[368683743,1751295956706,-698.42562564,0.00021189,2]
[368683744,1751295956728,-265.0,0.00021197,2]
[368683745,1751295956751,-542.67,0.00021245,2]
[368683746,1751295956776,-319.04,0.00021245,2]
[368683747,1751295956798,-460.0,0.00021245,2]
[368683748,1751295956819,-460.0,0.00021245,2]
[368683749,1751295956842,-476.35,0.00021245,2]
[368683750,1751295956864,-1734.18,0.00021246,2]
[368683751,1751295956887,-541.9,0.00021246,2]
[368683752,1751295956908,-460.0,0.00021246,2]
[368683753,1751295956927,-206.0,0.0002132,2]
[368683754,1751295956952,-2146.7062248,0.00021348,5]
[368683755,1751295956974,-1019.53,0.00021417,2]
[368683756,1751295956997,-1005.55,0.00021417,2]
[368683757,1751295957018,-741.63,0.00021417,2]
[368683758,1751295957043,-868.22,0.00021417,2]
[368683759,1751295957066,-1506.3,0.00021417,2]
[368683760,1751295957088,-478.08,0.00021417,2]
[368683761,1751295957111,-460.0,0.00021418,2]
[368683762,1751295957133,-1021.54,0.00021418,2]
[368683763,1751295957154,-460.0,0.00021419,2]
[368683764,1751295957176,-590.23,0.00021419,2]
[368683765,1751295957199,-926.7,0.00021419,2]
[368683766,1751295957221,-2506.12676627,0.00021467,2]
[368683767,1751295957242,-532.49846188,0.00021506,2]
[368683768,1751295957265,-542.67,0.00021519,2]
[368683769,1751295957287,-460.0,0.00021519,2]
[368683770,1751295957308,-460.0,0.00021519,2]
[368683771,1751295957455,-476.35,0.00021519,2]
[368683772,1751295957476,-1734.18,0.0002152,2]
[368683773,1751295957499,-541.9,0.0002152,2]
[368683774,1751295957520,-460.0,0.0002152,2]
[368683775,1751295957541,-155.94386,0.0002154,7]
[368683776,1751295957567,-2146.7062248,0.00021555,5]
[368683777,1751295957587,-541.872868,0.0002156,4]
[368683778,1751295957607,-200.0,0.0002156,2]
[368683779,1751295957629,-500.0,0.00021561,2]
[368683780,1751295957652,-215.0738,0.00021571,2]
[368683781,1751295957673,-587.0,0.00021578,2]
[368683782,1751295957693,-1074.8363726,0.000216,2]
[368683784,1751296017160,-1259.86,0.00018131,2]
[368683785,1751296017185,-1180.01,0.00018231,2]
[368683786,1751296017207,-460.0,0.00018231,2]
[368683787,1751296017231,-460.0,0.00018231,2]
[368683788,1751296017253,-465.95,0.00018403,2]
[368683789,1751296017276,-460.0,0.00018403,2]
[368683790,1751296017299,-460.0,0.00018403,2]
[368683791,1751296017321,-1259.86,0.00018405,2]
[368683792,1751296017345,-1180.01,0.00018505,2]
[368683793,1751296017367,-460.0,0.00018505,2]
[368683794,1751296017389,-460.0,0.00018677,2]
[368683795,1751296017412,-460.0,0.00018677,2]
[368683796,1751296017434,-1259.86,0.00018679,2]
[368683797,1751296017457,-1180.01,0.00018779,2]
[368683798,1751296017480,-460.0,0.00018779,2]
[368683799,1751296017502,-460.0,0.00018951,2]
[368683800,1751296017525,-460.0,0.00018951,2]
[368683801,1751296017547,-1259.86,0.00018953,2]
[368683802,1751296017569,-827.114582,0.00019053,2]
[368683803,1751296027093,-527.38,0.00018232,2]
[368683804,1751296027117,-460.0,0.00018404,2]
[368683805,1751296027140,-460.0,0.00018678,2]
[368683806,1751296027163,-460.0,0.00018952,2]
[368683807,1751296027188,-352.895418,0.00019053,2]
[368683808,1751296027212,-460.0,0.00019053,2]
[368683809,1751296027235,-460.0,0.00019225,2]
[368683810,1751296027259,-460.0,0.00019225,2]
[368683811,1751296027282,-460.0,0.00019226,2]
[368683812,1751296027305,-1259.86,0.00019227,2]
[368683813,1751296027328,-1180.01,0.00019327,2]
[368683814,1751296027353,-460.0,0.00019327,2]
[368683815,1751296027376,-300.0,0.00019358,2]
[368683816,1751296027397,-847.41730813,0.00019359,2]
[368683817,1751296027417,-160.0,0.00019359,2]
[368683818,1751296027438,-213.84631524,0.00019359,2]
[368683819,1751296027459,-160.0,0.00019359,2]
[368683820,1751296027480,-12569.13231816,0.00019359,2]
[368683821,1751296027503,-460.0,0.00019499,2]
[368683822,1751296027527,-460.0,0.00019499,2]
[368683823,1751296027551,-460.0,0.000195,2]
[368683824,1751296027573,-1259.86,0.00019501,2]
[368683825,1751296027597,-1180.01,0.00019601,2]
[368683826,1751296027620,-460.0,0.00019601,2]
[368683827,1751296027642,-460.0,0.00019773,2]
[368683828,1751296027666,-460.0,0.00019773,2]
[368683829,1751296027692,-1259.86,0.00019775,2]
[368683830,1751296027716,-1180.01,0.00019875,2]
[368683831,1751296027739,-460.0,0.00019875,2]
[368683832,1751296027761,-460.0,0.00020047,2]
[368683833,1751296027788,-460.0,0.00020047,2]
[368683834,1751296027816,-1259.86,0.00020049,2]
[368683835,1751296028020,-1180.01,0.00020149,2]
[368683836,1751296028045,-460.0,0.00020149,2]
[368683837,1751296028068,-460.0,0.00020321,2]
[368683838,1751296028094,-460.0,0.00020321,2]
[368683839,1751296028118,-1259.86,0.00020323,2]
[368683840,1751296028142,-1180.01,0.00020423,2]
[368683841,1751296028166,-460.0,0.00020423,2]
[368683842,1751296028192,-213.00477072,0.00020595,2]
[368683843,1751296028216,-460.0,0.00020595,2]
[368683844,1751296028240,-1259.86,0.00020597,2]
[368683845,1751296028263,-1180.01,0.00020697,2]
[368683846,1751296028286,-334.49,0.00020697,2]
[368683847,1751296028307,-406.0,0.00020851,2]
[368683848,1751296028328,-423.35,0.00020851,2]
[368683849,1751296028352,-460.0,0.00020869,2]
[368683850,1751296028375,-1259.86,0.00020871,2]
[368683851,1751296028398,-1180.01,0.00020971,2]
[368683852,1751296028421,-12500.0,0.00020999,2]
[368683853,1751296028443,-847.41730813,0.00021,7]
[368683854,1751296028465,-420.0,0.00021093,2]
[368683855,1751296028488,-460.0,0.00021143,2]
[368683856,1751296028510,-1259.86,0.00021145,2]
[368683857,1751296028533,-1180.01,0.00021245,2]
[368683858,1751296028555,-460.0,0.00021417,2]
[368683859,1751296028576,-1259.86,0.00021419,2]
[368683860,1751296028599,-1180.01,0.00021519,2]
[368683861,1751296028621,-464.462458,0.0002156,4]
[368683862,1751296028641,-925.1636274,0.000216,2]
[368683863,1751296028661,-206.0,0.000216,2]
[368683864,1751296028683,-358.0,0.0002166,2]
[368683865,1751296028706,-1005.55,0.00021691,2]
[368683866,1751296028728,-1019.53,0.00021691,2]
[368683867,1751296028750,-741.63,0.00021691,2]
[368683868,1751296028773,-868.22,0.00021691,2]
[368683869,1751296028799,-1506.3,0.00021691,2]
[368683870,1751296028822,-478.08,0.00021691,2]
[368683871,1751296028846,-460.0,0.00021691,2]
[368683872,1751296028868,-460.0,0.00021692,2]
[368683873,1751296028891,-1021.54,0.00021692,2]
[368683874,1751296028913,-590.23,0.00021693,2]
[368683875,1751296028936,-926.7,0.00021693,2]
[368683876,1751296028958,-1259.86,0.00021693,2]
[368683877,1751296028984,-2146.7062248,0.00021762,5]
[368683878,1751296029005,-8860.98,0.0002179,10]
[368683879,1751296029030,-460.0,0.00021793,2]
[368683880,1751296029052,-329.5053056,0.00021793,2]
[368683881,1751296029075,-476.35,0.00021793,2]
[368683882,1751296029098,-1180.01,0.00021793,2]
[368683883,1751296029120,-541.9,0.00021794,2]
[368683884,1751296029142,-460.0,0.00021794,2]
[368683885,1751296029162,-500.0,0.00021796,2]
[368683886,1751296029184,-500.0,0.00021799,2]
[368683887,1751296029204,-50363.0,0.000218,2]
[368683888,1751296029226,-151.0,0.000218,3]
[368683889,1751296029246,-500.0,0.00021823,2]
[368683890,1751296029267,-153.0,0.00021836,2]
[368683891,1751296029287,-153.0,0.00021836,2]
[368683892,1751296029308,-153.0,0.00021836,2]
[368683893,1751296029328,-500.51008903,0.00021851,2]
[368683894,1751296029349,-206.0,0.0002188,2]
[368683895,1751296029370,-2000.0,0.000219,2]
[368683896,1751296029390,-2000.0,0.000219,2]
[368683897,1751296029411,-532.49846188,0.000219,2]
[368683898,1751296029432,-4306.83,0.000219,2]
[368683899,1751296029453,-5386.05733614,0.000219,2]
[368683900,1751296029474,-460.0,0.00021917,2]
[368683901,1751296029495,-460.0,0.00021917,2]
[368683902,1751296029523,-460.0,0.00021917,2]
[368683903,1751296029549,-502.03928275,0.00021917,2]
[368683904,1751296029573,-500.0,0.00021917,2]
[368683905,1751296029598,-500.0,0.00021917,2]
[368683906,1751296029622,-500.0,0.00021917,2]
[368683907,1751296029646,-500.0,0.00021917,2]
[368683908,1751296029671,-500.0,0.00021917,2]
[368683909,1751296029699,-500.0,0.00021917,2]
[368683910,1751296029725,-500.0,0.00021917,2]
[368683911,1751296029749,-500.0,0.00021917,2]
[368683912,1751296029774,-500.0,0.00021917,2]
[368683913,1751296029800,-500.0,0.00021917,2]
[368683914,1751296029826,-500.0,0.00021917,2]
[368683915,1751296029853,-500.0,0.00021917,2]
[368683916,1751296029875,-500.0,0.00021917,2]
[368683917,1751296029899,-500.0,0.00021917,2]
[368683918,1751296029924,-153.0,0.00021918,2]
[368683919,1751296029951,-153.0,0.00021918,2]
[368683920,1751296029979,-153.0,0.00021918,2]
[368683921,1751296030007,-153.0,0.00021918,2]
[368683922,1751296030034,-153.0,0.00021918,2]
[368683923,1751296030060,-153.0,0.00021918,2]
[368683924,1751296030086,-153.0,0.00021918,2]
[368683925,1751296030109,-153.0,0.00021918,2]
[368683926,1751296030136,-153.0,0.00021918,2]
[368683927,1751296030164,-153.0,0.00021918,2]
[368683928,1751296030186,-153.0,0.00021918,2]
[368683929,1751296030210,-153.0,0.00021918,2]
[368683930,1751296030235,-153.0,0.00021918,2]
[368683931,1751296030259,-153.0,0.00021918,2]
[368683932,1751296030283,-153.0,0.00021918,2]
[368683933,1751296030307,-153.0,0.00021918,2]
[368683934,1751296030331,-153.0,0.00021918,2]
[368683935,1751296030355,-153.0,0.00021918,2]
[368683936,1751296030381,-153.0,0.00021918,2]
[368683937,1751296030404,-153.0,0.00021918,2]
[368683938,1751296030428,-153.0,0.00021918,2]
[368683939,1751296030454,-153.0,0.00021918,2]
[368683940,1751296030478,-153.0,0.00021918,2]
[368683941,1751296030503,-153.0,0.00021918,2]
[368683942,1751296030530,-153.0,0.00021918,2]
[368683943,1751296030555,-153.0,0.00021918,2]
[368683944,1751296030581,-153.0,0.00021918,2]
[368683945,1751296030605,-153.0,0.00021918,2]
[368683946,1751296030628,-153.0,0.00021918,2]
[368683947,1751296030651,-153.0,0.00021918,2]
[368683948,1751296030675,-153.0,0.00021918,2]
[368683949,1751296030702,-153.0,0.00021918,2]
[368683950,1751296030727,-153.0,0.00021918,2]
[368683951,1751296030751,-153.0,0.00021918,2]
[368683952,1751296030775,-153.0,0.00021918,2]
[368683953,1751296030801,-153.0,0.00021918,2]
[368683954,1751296030834,-153.0,0.00021918,2]
[368683955,1751296030872,-153.0,0.00021918,2]
[368683956,1751296030903,-153.0,0.00021918,2]
[368683957,1751296030924,-153.0,0.00021918,2]
[368683958,1751296030950,-153.0,0.00021918,2]
[368683959,1751296030974,-153.0,0.00021918,2]
[368683960,1751296030996,-153.0,0.00021918,2]
[368683961,1751296031018,-153.0,0.00021918,2]
[368683962,1751296031041,-153.0,0.00021918,2]
[368683963,1751296031065,-153.0,0.00021918,2]
[368683964,1751296031087,-153.0,0.00021918,2]
[368683965,1751296031110,-153.0,0.00021918,2]
[368683966,1751296031132,-153.0,0.00021918,2]
[368683967,1751296031358,-153.0,0.00021918,2]
[368683968,1751296031385,-153.0,0.00021918,2]
[368683969,1751296031406,-153.0,0.00021918,2]
[368683970,1751296031426,-153.0,0.00021918,2]
[368683971,1751296031449,-153.0,0.00021918,2]
[368683972,1751296031471,-153.0,0.00021918,2]
[368683973,1751296031495,-153.0,0.00021918,2]
[368683974,1751296031516,-153.0,0.00021918,2]
[368683975,1751296031538,-153.0,0.00021918,2]
[368683976,1751296031561,-153.0,0.00021918,2]
[368683977,1751296031583,-153.0,0.00021918,2]
[368683978,1751296031604,-153.0,0.00021918,2]
[368683979,1751296031625,-153.0,0.00021918,2]
[368683980,1751296031645,-153.0,0.00021918,2]
[368683981,1751296031668,-153.0,0.00021918,2]
[368683982,1751296031690,-153.0,0.00021918,2]
[368683983,1751296031710,-153.0,0.00021918,2]
[368683984,1751296031729,-400.0,0.00021918,7]
[368683985,1751296031748,-500.0,0.00021918,30]
[368683986,1751296031768,-500.0,0.00021918,2]
[368683987,1751296031788,-150.0,0.00021918,2]
[368683988,1751296031812,-1005.55,0.00021965,2]
[368683989,1751296031834,-1019.53,0.00021965,2]
[368683990,1751296031856,-741.63,0.00021965,2]
[368683991,1751296031879,-868.22,0.00021965,2]
[368683992,1751296031901,-1506.3,0.00021965,2]
[368683993,1751296031923,-478.08,0.00021965,2]
[368683994,1751296031947,-460.0,0.00021965,2]
[368683995,1751296031969,-585.31936139,0.00021966,2]
[368683996,1751296031990,-1021.54,0.00021966,2]
[368683997,1751296032012,-590.23,0.00021967,2]
[368683998,1751296032035,-926.7,0.00021967,2]
[368683999,1751296032057,-1259.86,0.00021967,2]
[368684000,1751296032083,-2146.7062248,0.00021969,6]
[368684001,1751296032103,-500.0,0.00021973,2]
[368684002,1751296032122,-500.0,0.00021973,2]
[368684003,1751296032142,-404.82026296,0.00021973,2]
[368684004,1751296032163,-500.0,0.00021973,2]
[368684005,1751296032183,-210.22072563,0.00021973,2]
[368684006,1751296032204,-500.0,0.00021973,2]
[368684007,1751296032224,-153.31307263,0.00021973,2]
[368684008,1751296032244,-500.0,0.00021973,2]
[368684009,1751296032265,-500.0,0.00021973,2]
[368684010,1751296032285,-500.0,0.00021973,2]
[368684011,1751296032305,-500.0,0.00021973,2]
[368684012,1751296032326,-500.19386465,0.00021973,2]
[368684013,1751296032346,-500.0,0.00021973,2]
[368684014,1751296032367,-500.0,0.00021973,2]
[368684015,1751296032385,-500.0,0.00021973,2]
[368684016,1751296032404,-500.0,0.00021973,2]
[368684017,1751296032423,-500.0,0.00021973,2]
[368684018,1751296032444,-500.0,0.00021973,2]
[368684019,1751296032464,-198.29444739,0.00021973,2]
[368684020,1751296032483,-500.0,0.00021973,2]
[368684021,1751296032502,-500.0,0.00021973,2]
[368684022,1751296032522,-160.04797764,0.00021973,2]
[368684023,1751296032543,-535.06885935,0.00021973,2]
[368684024,1751296032562,-500.0,0.00021973,2]
[368684025,1751296032581,-306.90086317,0.00021973,2]
[368684026,1751296032600,-160.04578804,0.00021973,2]
[368684027,1751296032619,-160.04675528,0.00021973,2]
[368684028,1751296032638,-500.0,0.00021973,2]
[368684029,1751296032656,-500.0,0.00021973,2]
[368684030,1751296032675,-160.04797764,0.00021973,2]
[368684031,1751296032695,-160.04797764,0.00021973,2]
[368684032,1751296032714,-500.39951782,0.00021973,2]
[368684033,1751296032733,-500.0,0.00021973,2]
[368684034,1751296032753,-500.0,0.00021973,2]
[368684035,1751296032772,-500.0,0.00021973,2]
[368684036,1751296032792,-500.0,0.00021973,2]
[368684037,1751296032815,-1142.47664435,0.00021973,2]
[368684038,1751296032835,-500.0,0.00021999,2]
[368684039,1751296032857,-500.0,0.00021999,2]
[368684040,1751296032879,-260.5343799,0.00021999,2]
[368684041,1751296032900,-157.94134553,0.00021999,2]
[368684042,1751296032921,-500.0,0.00021999,2]
[368684043,1751296032943,-500.0,0.00021999,2]
[368684044,1751296032966,-500.0,0.00021999,2]
[368684045,1751296032987,-500.0,0.00021999,2]
[368684046,1751296033010,-500.0,0.00021999,2]
[368684047,1751296033030,-649.4071906,0.00021999,2]
[368684048,1751296033053,-500.0,0.00021999,2]
[368684049,1751296033075,-500.0,0.00021999,2]
[368684050,1751296033097,-421.09203079,0.00021999,2]
[368684051,1751296033118,-500.0,0.00021999,2]
[368684052,1751296033140,-500.0,0.00021999,2]
[368684053,1751296033162,-500.0,0.00021999,2]
[368684054,1751296033184,-500.0,0.00021999,2]
[368684055,1751296033204,-201.20087727,0.00021999,2]
[368684056,1751296033225,-500.0,0.00021999,2]
[368684057,1751296033245,-490.0,0.00021999,2]
[368684058,1751296033268,-270.0,0.00021999,2]
[368684059,1751296033292,-44853.25263457,0.00022,2]
[368684060,1751296033312,-67559.4379811,0.00022,5]
[368684061,1751296033332,-69697.95906388,0.00022,5]
[368684062,1751296033917,-460.0,0.00018402,2]
[368684063,1751296033942,-460.0,0.00018403,2]
[368684064,1751296033966,-460.0,0.00018676,2]
[368684065,1751296033988,-460.0,0.00018677,2]
[368684066,1751296034010,-460.0,0.0001895,2]
[368684067,1751296034031,-460.0,0.00018951,2]
[368684068,1751296034052,-460.0,0.00019225,2]
[368684069,1751296034071,-230.31346914,0.00019359,2]
[368684070,1751296034092,-460.0,0.00019499,2]
[368684071,1751296034114,-460.0,0.00019773,2]
[368684072,1751296034135,-460.0,0.00020047,2]
[368684073,1751296034156,-460.0,0.00020321,2]
[368684074,1751296034178,-460.0,0.00020595,2]
[368684075,1751296034201,-460.0,0.00020869,2]
[368684076,1751296034223,-460.0,0.00021143,2]
[368684077,1751296034245,-460.0,0.00021417,2]
[368684078,1751296034267,-460.0,0.00021691,2]
[368684079,1751296034287,-121834.84708586,0.00022,5]
[368684080,1751296034482,-460.0,0.00019224,2]
[368684081,1751296034502,-214.99848635,0.00019359,2]
[368684082,1751296034524,-460.0,0.00019498,2]
[368684083,1751296034546,-460.0,0.00019772,2]
[368684084,1751296034568,-592.37,0.00021965,2]
[368684085,1751296034588,-92715.28955165,0.00022,5]
[368684086,1751296041103,-460.0,0.00018403,2]
[368684087,1751296041127,-460.0,0.00018404,2]
[368684088,1751296041150,-460.0,0.00018677,2]
[368684089,1751296041173,-460.0,0.00018678,2]
[368684090,1751296041196,-460.0,0.00018951,2]
[368684091,1751296041219,-460.0,0.00018952,2]
[368684092,1751296041243,-460.0,0.00019225,2]
[368684093,1751296041263,-160.0,0.00019359,2]
[368684094,1751296041284,-837.16779106,0.00019359,2]
[368684095,1751296041308,-460.0,0.00020046,2]
[368684096,1751296041331,-460.0,0.0002032,2]
[368684097,1751296041356,-460.0,0.00020594,2]
[368684098,1751296041379,-460.0,0.00020868,2]
[368684099,1751296041402,-460.0,0.00021142,2]
[368684100,1751296041424,-460.0,0.00021416,2]
[368684101,1751296041446,-398.110678,0.0002156,4]
[368684102,1751296041468,-460.0,0.0002169,2]
[368684103,1751296041492,-460.0,0.00021964,2]
[368684104,1751296041513,-8860.98,0.0002199,10]
[368684105,1751296041534,-2200.0,0.00021999,2]
[368684106,1751296041558,-181075.01177294,0.00022,5]
[368684107,1751296042083,-160.0,0.00019359,2]
[368684108,1751296042104,-79808.698748,0.00022,5]
[368684109,1751296049084,-460.0,0.00018403,2]
[368684110,1751296049105,-460.0,0.00018677,2]
[368684111,1751296049127,-460.0,0.00018951,2]
[368684112,1751296049148,-460.0,0.00019225,2]
[368684113,1751296049169,-460.0,0.00019499,2]
[368684114,1751296049191,-183.81,0.00019773,2]
[368684115,1751296049212,-5907.32,0.0002199,10]
[368684116,1751296049233,-13731.123368,0.00022,5]
[368684117,1751296050083,-8640.02839174,0.00022,5]
[368684118,1751296050104,-1109666.08343934,0.00022,5]
[368684119,1751296050125,-72689.85290792,0.00022,5]
[368684120,1751296052090,-795250.574037,0.00022,5]
[368684198,1751296232548,-380.15004433,0.00018131,2]
[368684206,1751296232612,-79.84995567,0.00018131,2]
[368684208,1751296232622,-300.0,0.0001823,2]
[368684210,1751296232632,-460.0,0.00018231,2]
[368684212,1751296232641,-460.0,0.00018231,2]
[368684213,1751296232650,-460.0,0.00018231,2]
[368684217,1751296232659,-80.01664685,0.00018231,2]
[368684221,1751296232671,-379.98335315,0.00018231,2]
[368684225,1751296232680,-154.71664685,0.00018231,2]
[368684228,1751296232691,-305.28335315,0.00018231,2]
[368684230,1751296232700,-606.77,0.00018231,2]
[368684232,1751296232709,-249.08874525,0.00018231,2]
[368684234,1751296232721,-210.91125475,0.00018231,2]
[368684236,1751296232730,-460.0,0.00018231,2]
[368684238,1751296232739,-553.83,0.00018231,2]
[368684241,1751296232759,-234.95442889,0.00018233,2]
[368684243,1751296232769,-506.46,0.00018402,2]
[368684245,1751296232779,-460.0,0.00018403,2]
[368684247,1751296232789,-463.52,0.00018403,2]
[368684249,1751296232799,-460.0,0.00018403,2]
[368684251,1751296232809,-878.68,0.00018403,2]
[368684253,1751296232818,-346.22,0.00018403,2]
[368684255,1751296232827,-301.7573555,0.00018403,2]
[368684263,1751296232907,-158.2426445,0.00018403,2]
[368684265,1751296232916,-460.0,0.00018403,2]
[368684267,1751296232925,-668.87,0.00018403,2]
[368684270,1751296232937,-491.65,0.00018403,2]
[368684272,1751296232947,-460.0,0.00018403,2]
[368684274,1751296232957,-460.0,0.00018403,2]
[368684276,1751296232966,-460.0,0.00018403,2]
[368684278,1751296232976,-460.0,0.00018404,2]
[368684280,1751296232986,-460.0,0.00018404,2]
[368684282,1751296232995,-460.0,0.00018404,2]
[368684284,1751296233005,-460.0,0.00018404,2]
[368684286,1751296233015,-460.0,0.00018404,2]
[368684288,1751296233024,-460.0,0.00018405,2]
[368684290,1751296233034,-460.0,0.00018505,2]
[368684292,1751296233044,-460.0,0.00018505,2]
[368684294,1751296233055,-460.0,0.00018505,2]
[368684296,1751296233065,-652.09,0.00018505,2]
[368684298,1751296233075,-606.77,0.00018505,2]
[368684300,1751296233085,-460.0,0.00018505,2]
[368684302,1751296233095,-460.0,0.00018505,2]
[368684304,1751296233106,-492.4,0.00018505,2]
[368684306,1751296233117,-553.83,0.00018505,2]
[368684308,1751296233127,-20.8871375,0.00018676,2]
[368684310,1751296233140,-380.375672,0.00018676,2]
[368684824,1751296238353,-105.1971905,0.00018676,2]
[368684826,1751296238364,-460.0,0.00018677,2]
[368684828,1751296238374,-343.15216398,0.00018677,2]
[368684830,1751296238387,-120.36783602,0.00018677,2]
[368684832,1751296238397,-460.0,0.00018677,2]
[368684834,1751296238406,-878.68,0.00018677,2]
[368684837,1751296238418,-460.0,0.00018677,2]
[368684839,1751296238427,-460.0,0.00018677,2]
[368684841,1751296238436,-668.87,0.00018677,2]
[368684843,1751296238446,-460.0,0.00018678,2]
[368684845,1751296238456,-327.6618175,0.00018678,2]
[368684847,1751296238466,-460.0,0.00018678,2]
[368684849,1751296238475,-460.0,0.00018678,2]
[368684850,1751296238485,-460.0,0.00018678,2]
[368684853,1751296238495,-460.0,0.00018679,2]
[368684854,1751296238504,-460.0,0.00018779,2]
[368684855,1751296238513,-460.0,0.00018779,2]
[368684856,1751296238522,-460.0,0.00018779,2]
[368684857,1751296238531,-652.09,0.00018779,2]
[368684858,1751296238540,-606.77,0.00018779,2]
[368684859,1751296238549,-460.0,0.00018779,2]
[368684860,1751296238559,-460.0,0.00018779,2]
[368684861,1751296238569,-553.83,0.00018779,2]
[368684862,1751296238578,-506.46,0.0001895,2]
[368684863,1751296238588,-460.0,0.00018951,2]